[Event "*** Titled Tuesday Blitz"]
[Site "Chess.com"]
[Date "2020.11.10"]
[Round "1"]
[White "semchik73"]
[Black "Leonid_Starozhilov"]
[Result "0-1"]
[WhiteElo "2351"]
[BlackElo "2697"]
[TimeControl "180+1"]
[EndTime "10:07:47 PST"]
[Termination "Leonid_Starozhilov won by resignation"]

1. Nf3 {[%clk 0:02:46.8]} 1... c5 {[%clk 0:02:41.7]} 2. c4 {[%clk 0:02:46.4]}
2... Nf6 {[%clk 0:02:41.2]} 3. Nc3 {[%clk 0:02:46.1]} 3... g6 {[%clk 0:02:39.8]}
4. d4 {[%clk 0:02:46.2]} 4... cxd4 {[%clk 0:02:38.4]} 5. Nxd4 {[%clk 0:02:46.9]}
5... Bg7 {[%clk 0:02:39.1]} 6. e4 {[%clk 0:02:47]} 6... d6 {[%clk 0:02:37.9]} 7.
Be2 {[%clk 0:02:46.2]} 7... O-O {[%clk 0:02:38.5]} 8. Be3 {[%clk 0:02:46.5]}
8... Nc6 {[%clk 0:02:38.9]} 9. O-O {[%clk 0:02:45.7]} 9... Bd7 {[%clk
0:02:38.7]} 10. f3 {[%clk 0:02:36.5]} 10... Nxd4 {[%clk 0:02:36.5]} 11. Bxd4
{[%clk 0:02:35.8]} 11... a5 {[%clk 0:02:36.3]} 12. Qd2 {[%clk 0:02:32.3]} 12...
Bc6 {[%clk 0:02:36.4]} 13. Rfd1 {[%clk 0:02:28.8]} 13... Nd7 {[%clk 0:02:36.2]}
14. Bxg7 {[%clk 0:02:24.6]} 14... Kxg7 {[%clk 0:02:36.3]} 15. Qd4+ {[%clk
0:02:25.2]} 15... f6 {[%clk 0:02:36.7]} 16. f4 {[%clk 0:02:19.8]} 16... Qb6
{[%clk 0:02:34.7]} 17. Qxb6 {[%clk 0:02:06.4]} 17... Nxb6 {[%clk 0:02:35.6]} 18.
Rac1 {[%clk 0:01:55.1]} 18... Nd7 {[%clk 0:02:27.7]} 19. Bf3 {[%clk 0:01:50.5]}
19... Nc5 {[%clk 0:02:20.8]} 20. Nd5 {[%clk 0:01:42.9]} 20... Bxd5 {[%clk
0:02:10.8]} 21. Rxd5 {[%clk 0:01:39.7]} 21... Rac8 {[%clk 0:01:47.4]} 22. e5
{[%clk 0:01:39.5]} 22... dxe5 {[%clk 0:01:42.7]} 23. fxe5 {[%clk 0:01:39.4]}
23... fxe5 {[%clk 0:01:27.3]} 24. Re1 {[%clk 0:01:38.8]} 24... e6 {[%clk
0:01:12.5]} 25. Rd6 {[%clk 0:01:22]} 25... Kf6 {[%clk 0:01:12.4]} 26. Rb6 {[%clk
0:01:14.8]} 26... Rc7 {[%clk 0:01:09.8]} 27. b3 {[%clk 0:01:05.9]} 27... Rd8
{[%clk 0:01:00.9]} 28. Rb5 {[%clk 0:01:00.4]} 28... a4 {[%clk 0:00:36.7]} 29. b4
{[%clk 0:00:52.2]} 29... Nd3 {[%clk 0:00:36.9]} 30. Rf1 {[%clk 0:00:52.7]} 30...
Ke7 {[%clk 0:00:27.2]} 31. c5 {[%clk 0:00:52.8]} 31... Rd4 {[%clk 0:00:22.3]}
32. a3 {[%clk 0:00:51.5]} 32... e4 {[%clk 0:00:22.5]} 33. Be2 {[%clk 0:00:47.2]}
33... g5 {[%clk 0:00:15]} 34. Rb6 {[%clk 0:00:44.1]} 34... Nf4 {[%clk
0:00:13.7]} 35. Bg4 {[%clk 0:00:43.2]} 35... h5 {[%clk 0:00:13.4]} 36. Bd1
{[%clk 0:00:40.9]} 36... Rd2 {[%clk 0:00:09]} 37. Bxa4 {[%clk 0:00:33.6]} 37...
Rxg2+ {[%clk 0:00:07.9]} 38. Kh1 {[%clk 0:00:34.2]} 38... Ra2 {[%clk 0:00:07.8]}
39. c6 {[%clk 0:00:25.7]} 39... bxc6 {[%clk 0:00:07.8]} 40. Bxc6 {[%clk
0:00:26]} 40... Rxa3 {[%clk 0:00:07.7]} 41. Bb5 {[%clk 0:00:25]} 41... Rac3
{[%clk 0:00:07.7]} 42. Rb8 {[%clk 0:00:22.3]} 42... Rc1 {[%clk 0:00:07.3]} 43.
Kg1 {[%clk 0:00:17.3]} 43... R7c2 {[%clk 0:00:06.6]} 44. Rxc1 {[%clk 0:00:16.4]}
44... Rxc1+ {[%clk 0:00:06.8]} 45. Kf2 {[%clk 0:00:17.1]} 45... Rc3 {[%clk
0:00:07.1]} 46. Bf1 {[%clk 0:00:15.6]} 46... g4 {[%clk 0:00:06.5]} 47. b5 {[%clk
0:00:15.2]} 47... e3+ {[%clk 0:00:06.8]} 48. Kg3 {[%clk 0:00:13.8]} 48... e2+
{[%clk 0:00:07]} 49. Kf2 {[%clk 0:00:12.7]} 49... Rf3+ {[%clk 0:00:07.1]} 50.
Ke1 {[%clk 0:00:12.8]} 50... exf1=Q+ {[%clk 0:00:07.5]} 0-1

[Event "*** Titled Tuesday Blitz"]
[Site "Chess.com"]
[Date "2020.11.10"]
[Round "1"]
[White "chessmachine14"]
[Black "ShapkinAnatoliy"]
[Result "0-1"]
[WhiteElo "2295"]
[BlackElo "2613"]
[TimeControl "180+1"]
[EndTime "10:07:48 PST"]
[Termination "ShapkinAnatoliy won by checkmate"]

1. e4 {[%clk 0:02:59.4]} 1... e5 {[%clk 0:02:53.8]} 2. Nf3 {[%clk 0:02:57.9]}
2... Nc6 {[%clk 0:02:54.3]} 3. Bb5 {[%clk 0:02:56.9]} 3... Nf6 {[%clk
0:02:53.7]} 4. d3 {[%clk 0:02:55.5]} 4... Bc5 {[%clk 0:02:52.7]} 5. O-O {[%clk
0:02:54.1]} 5... d6 {[%clk 0:02:52.2]} 6. c3 {[%clk 0:02:49.3]} 6... O-O {[%clk
0:02:51.9]} 7. d4 {[%clk 0:02:46.6]} 7... exd4 {[%clk 0:02:50.5]} 8. cxd4 {[%clk
0:02:46.3]} 8... Bb6 {[%clk 0:02:51.1]} 9. Re1 {[%clk 0:02:39.3]} 9... Bg4
{[%clk 0:02:49.9]} 10. Bxc6 {[%clk 0:02:26.7]} 10... bxc6 {[%clk 0:02:50.8]} 11.
Kh1 {[%clk 0:02:08.4]} 11... Re8 {[%clk 0:02:50]} 12. Nc3 {[%clk 0:02:04]} 12...
c5 {[%clk 0:02:49.7]} 13. d5 {[%clk 0:02:01.1]} 13... Ba5 {[%clk 0:02:49.8]} 14.
Qd3 {[%clk 0:01:52.7]} 14... Nd7 {[%clk 0:02:33.9]} 15. Bf4 {[%clk 0:01:37.7]}
15... Qf6 {[%clk 0:02:31.9]} 16. Bg5 {[%clk 0:01:33.3]} 16... Qg6 {[%clk
0:02:30.5]} 17. Bf4 {[%clk 0:01:13]} 17... Bxc3 {[%clk 0:02:12.1]} 18. bxc3
{[%clk 0:01:12]} 18... c4 {[%clk 0:02:07.5]} 19. Qxc4 {[%clk 0:01:09.3]} 19...
Bxf3 {[%clk 0:02:06.8]} 20. gxf3 {[%clk 0:01:09.6]} 20... Qf6 {[%clk 0:01:54]}
21. Bg3 {[%clk 0:00:40.7]} 21... Qxf3+ {[%clk 0:01:52.2]} 22. Kg1 {[%clk
0:00:40.9]} 22... Nc5 {[%clk 0:01:47.5]} 23. Re3 {[%clk 0:00:40.6]} 23... Qg4
{[%clk 0:01:45.3]} 24. Rae1 {[%clk 0:00:40.9]} 24... Re7 {[%clk 0:01:40.4]} 25.
f3 {[%clk 0:00:41.2]} 25... Qg6 {[%clk 0:01:32.6]} 26. Kh1 {[%clk 0:00:32.5]}
26... Rae8 {[%clk 0:01:31.2]} 27. Qb5 {[%clk 0:00:29.5]} 27... h5 {[%clk
0:01:20.3]} 28. e5 {[%clk 0:00:28.5]} 28... Qf5 {[%clk 0:01:02.5]} 29. f4 {[%clk
0:00:07.7]} 29... h4 {[%clk 0:00:42.7]} 30. Bxh4 {[%clk 0:00:08.1]} 30... Rd7
{[%clk 0:00:30.4]} 31. exd6 {[%clk 0:00:08.2]} 31... Rxe3 {[%clk 0:00:26.6]} 32.
Rxe3 {[%clk 0:00:09.1]} 32... Qxf4 {[%clk 0:00:25]} 33. Re8+ {[%clk 0:00:06.8]}
33... Kh7 {[%clk 0:00:23.3]} 34. Qxc5 {[%clk 0:00:07.3]} 34... Qxh4 {[%clk
0:00:16.8]} 35. dxc7 {[%clk 0:00:07.5]} 35... Qf4 {[%clk 0:00:03.8]} 36. Rh8+
{[%clk 0:00:07]} 36... Kg6 {[%clk 0:00:01.6]} 37. Qg1+ {[%clk 0:00:07]} 37...
Kf6 {[%clk 0:00:01.4]} 38. c8=Q {[%clk 0:00:02.8]} 38... Qf3+ {[%clk 0:00:02]}
39. Qg2 {[%clk 0:00:03]} 39... Qd1+ {[%clk 0:00:02.7]} 40. Qg1 {[%clk
0:00:03.3]} 40... Qxd5+ {[%clk 0:00:03.4]} 41. Qg2 {[%clk 0:00:02.3]} 41... Qd1+
{[%clk 0:00:04]} 42. Qg1 {[%clk 0:00:02.5]} 42... Qf3+ {[%clk 0:00:04.6]} 43.
Qg2 {[%clk 0:00:02.6]} 43... Rd1# {[%clk 0:00:05.3]} 0-1

[Event "*** Titled Tuesday Blitz"]
[Site "Chess.com"]
[Date "2020.11.10"]
[Round "1"]
[White "IsuruAlahakoon"]
[Black "hungrycaterpillar4"]
[Result "0-1"]
[WhiteElo "2275"]
[BlackElo "2619"]
[TimeControl "180+1"]
[EndTime "10:07:53 PST"]
[Termination "hungrycaterpillar4 won on time"]

1. Nf3 {[%clk 0:03:00.4]} 1... d5 {[%clk 0:02:57.9]} 2. e3 {[%clk 0:03:00]} 2...
Nf6 {[%clk 0:02:57.3]} 3. c4 {[%clk 0:02:59.7]} 3... c6 {[%clk 0:02:57.5]} 4. d4
{[%clk 0:02:58]} 4... e6 {[%clk 0:02:57.6]} 5. Nbd2 {[%clk 0:02:56.6]} 5... Nbd7
{[%clk 0:02:55.4]} 6. Bd3 {[%clk 0:02:54.6]} 6... Bd6 {[%clk 0:02:53.4]} 7. b3
{[%clk 0:02:53.1]} 7... e5 {[%clk 0:02:50.5]} 8. cxd5 {[%clk 0:02:52.4]} 8...
cxd5 {[%clk 0:02:49.9]} 9. dxe5 {[%clk 0:02:52]} 9... Nxe5 {[%clk 0:02:49.9]}
10. Bb5+ {[%clk 0:02:51.4]} 10... Bd7 {[%clk 0:02:47.5]} 11. Bxd7+ {[%clk
0:02:51.2]} 11... Qxd7 {[%clk 0:02:48.4]} 12. O-O {[%clk 0:02:51]} 12... O-O
{[%clk 0:02:45.3]} 13. Bb2 {[%clk 0:02:48.7]} 13... Nd3 {[%clk 0:02:41.8]} 14.
Bd4 {[%clk 0:02:41.1]} 14... Ne4 {[%clk 0:02:40.9]} 15. Qe2 {[%clk 0:02:31.7]}
15... Nb4 {[%clk 0:02:40.4]} 16. Rfc1 {[%clk 0:02:12.6]} 16... Nc6 {[%clk
0:02:20.2]} 17. Bb2 {[%clk 0:02:09]} 17... Rac8 {[%clk 0:02:15.9]} 18. Rd1
{[%clk 0:02:04.7]} 18... Qf5 {[%clk 0:01:59.9]} 19. Nxe4 {[%clk 0:01:45.7]}
19... Qxe4 {[%clk 0:01:59.4]} 20. Qd3 {[%clk 0:01:41.9]} 20... Rfd8 {[%clk
0:01:52.4]} 21. a3 {[%clk 0:01:24.4]} 21... a6 {[%clk 0:01:42.3]} 22. h3 {[%clk
0:01:22.4]} 22... f6 {[%clk 0:01:40.4]} 23. Rd2 {[%clk 0:01:01.2]} 23... Ne5
{[%clk 0:01:36.4]} 24. Nxe5 {[%clk 0:00:57.2]} 24... Bxe5 {[%clk 0:01:35.6]} 25.
Qxe4 {[%clk 0:00:51.2]} 25... dxe4 {[%clk 0:01:34.4]} 26. Rxd8+ {[%clk
0:00:50.5]} 26... Rxd8 {[%clk 0:01:35.3]} 27. Bxe5 {[%clk 0:00:50]} 27... fxe5
{[%clk 0:01:36.2]} 28. Ra2 {[%clk 0:00:48.5]} 28... Rd1+ {[%clk 0:01:30.9]} 29.
Kh2 {[%clk 0:00:47.9]} 29... Rb1 {[%clk 0:01:31.8]} 30. b4 {[%clk 0:00:46.8]}
30... Rb3 {[%clk 0:01:31]} 31. Kg3 {[%clk 0:00:41.5]} 31... Kf7 {[%clk
0:01:30.6]} 32. Kg4 {[%clk 0:00:39.3]} 32... Ke6 {[%clk 0:01:23.6]} 33. h4
{[%clk 0:00:27.6]} 33... b5 {[%clk 0:01:20]} 34. h5 {[%clk 0:00:24.1]} 34... Rc3
{[%clk 0:00:51.7]} 35. a4 {[%clk 0:00:19.8]} 35... bxa4 {[%clk 0:00:41.5]} 36.
Rxa4 {[%clk 0:00:20.7]} 36... Rc6 {[%clk 0:00:42.1]} 37. g3 {[%clk 0:00:17.5]}
37... Rb6 {[%clk 0:00:42.4]} 38. Kg5 {[%clk 0:00:14.1]} 38... Kd5 {[%clk
0:00:41.4]} 39. Ra5+ {[%clk 0:00:12.1]} 39... Ke6 {[%clk 0:00:39.6]} 40. Ra4
{[%clk 0:00:11.9]} 40... Kd5 {[%clk 0:00:40]} 41. g4 {[%clk 0:00:11.1]} 41...
Kc4 {[%clk 0:00:37.7]} 42. Ra5 {[%clk 0:00:10.9]} 42... Kxb4 {[%clk 0:00:30.8]}
43. Rxe5 {[%clk 0:00:10.4]} 43... h6+ {[%clk 0:00:30]} 44. Kf4 {[%clk
0:00:09.1]} 44... Rf6+ {[%clk 0:00:30.2]} 45. Kxe4 {[%clk 0:00:07.2]} 45... Rxf2
{[%clk 0:00:30.3]} 46. Re7 {[%clk 0:00:06.2]} 46... a5 {[%clk 0:00:30]} 47. Rxg7
{[%clk 0:00:06.1]} 47... a4 {[%clk 0:00:27.9]} 48. Rg6 {[%clk 0:00:05]} 48... a3
{[%clk 0:00:26]} 49. Rxh6 {[%clk 0:00:04.2]} 49... Kb5 {[%clk 0:00:23.7]} 50.
Rh8 {[%clk 0:00:02.9]} 50... Rf6 {[%clk 0:00:24.2]} 0-1

[Event "*** Titled Tuesday Blitz"]
[Site "Chess.com"]
[Date "2020.11.10"]
[Round "1"]
[White "Kazmin_Dmitrij"]
[Black "swisspower96"]
[Result "0-1"]
[WhiteElo "2268"]
[BlackElo "2584"]
[TimeControl "180+1"]
[EndTime "10:07:53 PST"]
[Termination "swisspower96 won on time"]

1. e4 {[%clk 0:03:00.4]} 1... c5 {[%clk 0:02:55.3]} 2. Nc3 {[%clk 0:02:59.1]}
2... Nc6 {[%clk 0:02:54.3]} 3. g3 {[%clk 0:02:57.6]} 3... g6 {[%clk 0:02:49.2]}
4. Bg2 {[%clk 0:02:57.8]} 4... Bg7 {[%clk 0:02:47]} 5. d3 {[%clk 0:02:58]} 5...
d6 {[%clk 0:02:45.2]} 6. Nge2 {[%clk 0:02:57.5]} 6... Rb8 {[%clk 0:02:44.1]} 7.
a4 {[%clk 0:02:56.1]} 7... a6 {[%clk 0:02:41.2]} 8. O-O {[%clk 0:02:53]} 8... b5
{[%clk 0:02:40.6]} 9. axb5 {[%clk 0:02:51.8]} 9... axb5 {[%clk 0:02:41.5]} 10.
Nd5 {[%clk 0:02:34.4]} 10... e6 {[%clk 0:02:35.7]} 11. Ne3 {[%clk 0:02:34]}
11... Nge7 {[%clk 0:02:33.5]} 12. c3 {[%clk 0:02:33.9]} 12... f5 {[%clk
0:02:12.6]} 13. Nf4 {[%clk 0:02:26.2]} 13... O-O {[%clk 0:01:31.1]} 14. Qb3
{[%clk 0:02:23.4]} 14... Qd7 {[%clk 0:01:28.3]} 15. exf5 {[%clk 0:02:16.1]}
15... gxf5 {[%clk 0:01:19.2]} 16. Nh5 {[%clk 0:01:46.6]} 16... Bh8 {[%clk
0:01:11.8]} 17. Re1 {[%clk 0:01:33.5]} 17... d5 {[%clk 0:01:03]} 18. Nf4 {[%clk
0:01:19.4]} 18... c4 {[%clk 0:00:53.4]} 19. Qc2 {[%clk 0:01:17.9]} 19... Qd6
{[%clk 0:00:41.9]} 20. b3 {[%clk 0:01:13]} 20... d4 {[%clk 0:00:32.2]} 21. cxd4
{[%clk 0:01:02.9]} 21... Nxd4 {[%clk 0:00:32.1]} 22. Qa2 {[%clk 0:00:58]} 22...
Nxb3 {[%clk 0:00:29.7]} 23. Rb1 {[%clk 0:00:41.4]} 23... Nxc1 {[%clk 0:00:29.9]}
24. Rexc1 {[%clk 0:00:37.1]} 24... c3 {[%clk 0:00:28]} 25. Qa7 {[%clk
0:00:17.5]} 25... Bd7 {[%clk 0:00:21.3]} 26. Nc2 {[%clk 0:00:09.4]} 26... Bc6
{[%clk 0:00:18.8]} 27. Bxc6 {[%clk 0:00:07.6]} 27... Nxc6 {[%clk 0:00:19.7]} 28.
Qe3 {[%clk 0:00:07.6]} 28... b4 {[%clk 0:00:19.5]} 29. Qxe6+ {[%clk 0:00:05.6]}
29... Qxe6 {[%clk 0:00:19.6]} 30. Nxe6 {[%clk 0:00:06.1]} 30... b3 {[%clk
0:00:17.5]} 31. Ne3 {[%clk 0:00:06.1]} 31... c2 {[%clk 0:00:14.3]} 32. Nxc2
{[%clk 0:00:05.7]} 32... bxc2 {[%clk 0:00:14.2]} 33. Rxb8 {[%clk 0:00:05.6]}
33... Rxb8 {[%clk 0:00:13.9]} 34. Rxc2 {[%clk 0:00:05.9]} 34... Nd4 {[%clk
0:00:13.6]} 35. Rc7 {[%clk 0:00:04.7]} 35... Nxe6 {[%clk 0:00:12.8]} 36. Re7
{[%clk 0:00:03.9]} 36... Nd4 {[%clk 0:00:11.9]} 37. Kg2 {[%clk 0:00:04.2]} 37...
f4 {[%clk 0:00:11.9]} 38. gxf4 {[%clk 0:00:04]} 38... Bf6 {[%clk 0:00:12.3]} 39.
Rc7 {[%clk 0:00:03.3]} 39... Rb3 {[%clk 0:00:12.8]} 40. Rd7 {[%clk 0:00:01.6]}
40... Rxd3 {[%clk 0:00:12.7]} 41. Rd6 {[%clk 0:00:01.4]} 41... Kf7 {[%clk
0:00:12.7]} 42. f5 {[%clk 0:00:01.5]} 42... Ra3 {[%clk 0:00:10.7]} 43. Rd5
{[%clk 0:00:01.9]} 43... Rb3 {[%clk 0:00:10.1]} 44. Rd7+ {[%clk 0:00:02.4]}
44... Be7 {[%clk 0:00:08.4]} 45. h4 {[%clk 0:00:02.6]} 45... Nxf5 {[%clk
0:00:08.3]} 46. h5 {[%clk 0:00:02.4]} 46... Nh4+ {[%clk 0:00:08.6]} 47. Kh2
{[%clk 0:00:02.1]} 47... h6 {[%clk 0:00:09.4]} 48. Kg1 {[%clk 0:00:01.4]} 48...
Rb5 {[%clk 0:00:09.5]} 0-1

[Event "*** Titled Tuesday Blitz"]
[Site "Chess.com"]
[Date "2020.11.10"]
[Round "1"]
[White "oskariot"]
[Black "Basyak97"]
[Result "1-0"]
[WhiteElo "2693"]
[BlackElo "2349"]
[TimeControl "180+1"]
[EndTime "10:07:54 PST"]
[Termination "oskariot won by checkmate"]

1. e4 {[%clk 0:02:57]} 1... c5 {[%clk 0:02:59.4]} 2. Nf3 {[%clk 0:02:57.1]} 2...
d6 {[%clk 0:02:59.9]} 3. d4 {[%clk 0:02:57.4]} 3... cxd4 {[%clk 0:03:00.8]} 4.
Nxd4 {[%clk 0:02:58.3]} 4... Nf6 {[%clk 0:03:00.9]} 5. Nc3 {[%clk 0:02:59]} 5...
a6 {[%clk 0:03:01.3]} 6. f4 {[%clk 0:02:59.6]} 6... e6 {[%clk 0:03:00.1]} 7. Qf3
{[%clk 0:02:58.9]} 7... Qc7 {[%clk 0:02:55.1]} 8. g4 {[%clk 0:02:58]} 8... Nc6
{[%clk 0:02:51.6]} 9. Nb3 {[%clk 0:02:44.1]} 9... Be7 {[%clk 0:02:47.6]} 10. g5
{[%clk 0:02:44.1]} 10... Nd7 {[%clk 0:02:47.4]} 11. Be3 {[%clk 0:02:39.6]} 11...
b5 {[%clk 0:02:47]} 12. O-O-O {[%clk 0:02:39.9]} 12... Bb7 {[%clk 0:02:46.9]}
13. Kb1 {[%clk 0:02:39.6]} 13... O-O-O {[%clk 0:02:45.3]} 14. Bh3 {[%clk
0:02:26.3]} 14... Kb8 {[%clk 0:02:41.8]} 15. Qe2 {[%clk 0:02:18.3]} 15... Nb6
{[%clk 0:02:39.8]} 16. Rhg1 {[%clk 0:02:11.3]} 16... Nc4 {[%clk 0:02:39.1]} 17.
Bc1 {[%clk 0:02:11.7]} 17... Rhe8 {[%clk 0:02:34.9]} 18. f5 {[%clk 0:02:10.4]}
18... Bf8 {[%clk 0:02:31.6]} 19. fxe6 {[%clk 0:02:08.7]} 19... fxe6 {[%clk
0:02:31.5]} 20. g6 {[%clk 0:02:04.5]} 20... h6 {[%clk 0:02:29.6]} 21. Nd4 {[%clk
0:01:57.3]} 21... Nxd4 {[%clk 0:02:21.4]} 22. Rxd4 {[%clk 0:01:58.2]} 22... d5
{[%clk 0:01:20.6]} 23. Rf1 {[%clk 0:01:25.3]} 23... Bc5 {[%clk 0:01:18.9]} 24.
Rf7 {[%clk 0:01:23.1]} 24... Qb6 {[%clk 0:01:14.1]} 25. Rxc4 {[%clk 0:00:59.7]}
25... dxc4 {[%clk 0:01:00.4]} 26. Rxg7 {[%clk 0:01:00]} 26... Bd4 {[%clk
0:00:57.6]} 27. Rf7 {[%clk 0:00:51.9]} 27... b4 {[%clk 0:00:57.4]} 28. Na4
{[%clk 0:00:49.6]} 28... Qb5 {[%clk 0:00:56.2]} 29. Bxh6 {[%clk 0:00:11.6]}
29... Qxa4 {[%clk 0:00:53.6]} 30. Qxc4 {[%clk 0:00:12.1]} 30... Bb6 {[%clk
0:00:43.1]} 31. g7 {[%clk 0:00:10.6]} 31... Rd1+ {[%clk 0:00:41.3]} 32. Bc1
{[%clk 0:00:10.2]} 32... Rdd8 {[%clk 0:00:16.2]} 33. Bxe6 {[%clk 0:00:05.4]}
33... Qc6 {[%clk 0:00:15.2]} 34. Rxb7+ {[%clk 0:00:03.1]} 34... Qxb7 {[%clk
0:00:14.6]} 35. g8=Q {[%clk 0:00:03]} 35... Rxg8 {[%clk 0:00:14.2]} 36. Bxg8
{[%clk 0:00:03.9]} 36... Rc8 {[%clk 0:00:13.7]} 37. Qe6 {[%clk 0:00:01.3]} 37...
Ka8 {[%clk 0:00:13.6]} 38. Qg6 {[%clk 0:00:01.2]} 38... Qc7 {[%clk 0:00:13.6]}
39. Bd5+ {[%clk 0:00:01.7]} 39... Ka7 {[%clk 0:00:13.3]} 40. Qg2 {[%clk
0:00:02.6]} 40... Bd4 {[%clk 0:00:12.6]} 41. Qe2 {[%clk 0:00:03.1]} 41... Qe5
{[%clk 0:00:11.9]} 42. h4 {[%clk 0:00:04]} 42... a5 {[%clk 0:00:11.9]} 43. h5
{[%clk 0:00:04.5]} 43... Qxh5 {[%clk 0:00:11.2]} 44. Qxh5 {[%clk 0:00:04.3]}
44... Bb6 {[%clk 0:00:09.2]} 45. Qf7+ {[%clk 0:00:03.5]} 45... Rc7 {[%clk
0:00:09.4]} 46. Qxc7+ {[%clk 0:00:03.8]} 46... Bxc7 {[%clk 0:00:08.7]} 47. c3
{[%clk 0:00:04.4]} 47... Bd6 {[%clk 0:00:07.6]} 48. Kc2 {[%clk 0:00:04.7]} 48...
Kb6 {[%clk 0:00:07.4]} 49. Kb3 {[%clk 0:00:05.2]} 49... Kb5 {[%clk 0:00:06.8]}
50. c4+ {[%clk 0:00:05.1]} 50... Kc5 {[%clk 0:00:06.5]} 51. Be3# {[%clk
0:00:06]} 1-0

[Event "*** Titled Tuesday Blitz"]
[Site "Chess.com"]
[Date "2020.11.10"]
[Round "1"]
[White "djano"]
[Black "AnishOnYoutube"]
[Result "0-1"]
[WhiteElo "2464"]
[BlackElo "2973"]
[TimeControl "180+1"]
[EndTime "10:07:55 PST"]
[Termination "AnishOnYoutube won by resignation"]

1. d4 {[%clk 0:03:00.9]} 1... Nf6 {[%clk 0:02:59.7]} 2. Bf4 {[%clk 0:03:00.4]}
2... c5 {[%clk 0:02:57.4]} 3. d5 {[%clk 0:02:56.7]} 3... d6 {[%clk 0:02:55.9]}
4. Nc3 {[%clk 0:02:55.1]} 4... e5 {[%clk 0:02:53.7]} 5. dxe6 {[%clk 0:02:53.8]}
5... Bxe6 {[%clk 0:02:53.6]} 6. e4 {[%clk 0:02:54.2]} 6... Nc6 {[%clk
0:02:50.5]} 7. Nf3 {[%clk 0:02:54.1]} 7... Be7 {[%clk 0:02:50.5]} 8. Be2 {[%clk
0:02:52.5]} 8... O-O {[%clk 0:02:50.7]} 9. O-O {[%clk 0:02:52.6]} 9... Qb6
{[%clk 0:02:45.3]} 10. Rb1 {[%clk 0:02:43.9]} 10... Rad8 {[%clk 0:02:42.7]} 11.
Nd5 {[%clk 0:02:36.2]} 11... Bxd5 {[%clk 0:02:38.4]} 12. exd5 {[%clk 0:02:37.1]}
12... Nb8 {[%clk 0:02:13.3]} 13. Re1 {[%clk 0:02:28.4]} 13... Rfe8 {[%clk
0:02:13.8]} 14. h3 {[%clk 0:02:18.7]} 14... Nbd7 {[%clk 0:02:14.1]} 15. c3
{[%clk 0:02:12.4]} 15... Bf8 {[%clk 0:02:14.5]} 16. Bc4 {[%clk 0:01:56.1]} 16...
Qc7 {[%clk 0:02:05.4]} 17. Bf1 {[%clk 0:01:28.1]} 17... Rxe1 {[%clk 0:02:03.9]}
18. Nxe1 {[%clk 0:01:29]} 18... Re8 {[%clk 0:02:02.6]} 19. Nf3 {[%clk 0:01:21]}
19... a6 {[%clk 0:02:02.3]} 20. c4 {[%clk 0:01:20.6]} 20... Ne4 {[%clk
0:01:57.4]} 21. Nd2 {[%clk 0:01:17]} 21... g6 {[%clk 0:01:50.6]} 22. Nxe4 {[%clk
0:01:04.8]} 22... Rxe4 {[%clk 0:01:51.5]} 23. Bg3 {[%clk 0:01:01.2]} 23... Bg7
{[%clk 0:01:48.8]} 24. b3 {[%clk 0:00:54]} 24... Be5 {[%clk 0:01:43.2]} 25. Bxe5
{[%clk 0:00:49.4]} 25... Nxe5 {[%clk 0:01:39.1]} 26. Qc2 {[%clk 0:00:49]} 26...
Rd4 {[%clk 0:01:33.7]} 27. Re1 {[%clk 0:00:49.4]} 27... Qa5 {[%clk 0:01:30.7]}
28. Re2 {[%clk 0:00:28.8]} 28... Kg7 {[%clk 0:01:27.3]} 29. g3 {[%clk
0:00:27.5]} 29... Nf3+ {[%clk 0:01:26.4]} 30. Kh1 {[%clk 0:00:24.8]} 30... Rd2
{[%clk 0:01:23.5]} 31. Rxd2 {[%clk 0:00:24.5]} 31... Qxd2 {[%clk 0:01:22.7]} 32.
Qxd2 {[%clk 0:00:23.5]} 32... Nxd2 {[%clk 0:01:23.4]} 33. Bd3 {[%clk 0:00:21.6]}
33... Nf3 {[%clk 0:01:23]} 34. Be2 {[%clk 0:00:20.1]} 34... Nd4 {[%clk
0:01:21.9]} 35. Bd3 {[%clk 0:00:15.6]} 35... f5 {[%clk 0:01:15.8]} 36. f4 {[%clk
0:00:15.6]} 36... Kf6 {[%clk 0:01:15.7]} 37. Kg2 {[%clk 0:00:15.9]} 37... g5
{[%clk 0:01:10.9]} 38. Kf2 {[%clk 0:00:15.6]} 38... h6 {[%clk 0:01:08.4]} 39. h4
{[%clk 0:00:15.2]} 39... gxh4 {[%clk 0:01:06.3]} 40. gxh4 {[%clk 0:00:16.1]}
40... Kg6 {[%clk 0:01:07.1]} 41. Kg3 {[%clk 0:00:16.1]} 41... b6 {[%clk
0:00:58.6]} 42. Bf1 {[%clk 0:00:15.5]} 42... Nc2 {[%clk 0:00:54.3]} 43. Bd3
{[%clk 0:00:14.8]} 43... Ne3 {[%clk 0:00:41.3]} 44. Kf3 {[%clk 0:00:13.6]} 44...
Ng4 {[%clk 0:00:40.2]} 45. Kg3 {[%clk 0:00:13.1]} 45... Nf6 {[%clk 0:00:40.3]}
46. Kh3 {[%clk 0:00:09.7]} 46... Nh5 {[%clk 0:00:40.1]} 47. Bc2 {[%clk
0:00:05.9]} 47... Nxf4+ {[%clk 0:00:40]} 48. Kg3 {[%clk 0:00:06.8]} 48... Nh5+
{[%clk 0:00:40.2]} 49. Kf3 {[%clk 0:00:07.2]} 49... Kf6 {[%clk 0:00:40.6]} 50.
Bd1 {[%clk 0:00:05.1]} 50... Ke5 {[%clk 0:00:41]} 51. Ke3 {[%clk 0:00:05.6]}
51... Nf4 {[%clk 0:00:37.9]} 52. Bf3 {[%clk 0:00:05.7]} 52... Ng6 {[%clk
0:00:38.1]} 53. h5 {[%clk 0:00:05.2]} 53... Nf4 {[%clk 0:00:36.6]} 54. Bd1
{[%clk 0:00:05]} 54... Nh3 {[%clk 0:00:36.7]} 55. Bf3 {[%clk 0:00:04.8]} 55...
Ng5 {[%clk 0:00:33.6]} 56. Bd1 {[%clk 0:00:05]} 56... f4+ {[%clk 0:00:27.6]} 0-1